Cogmind - Beta 13 @@@ ROGUE MODE // 2024.06.27 @ 23:04:50 Player: CONM Result: Destroyed by ME-8BT(z) with Makeshift Spear Performance ------------- Evolutions (3) 1500 Regions Visited (11) 2200 Robots Destroyed (84) 420 Value Destroyed (2238) 2238 Prototype IDs (27) 540 Alien Tech Used (0) 0 Bonus (663) 663 TOTAL SCORE: 7561 Bonus ------- High Alert Combat Kills 23 Follower Combat Kills 40 Aligned with FarCom 300 Met Imprinter 300 Cogmind --------- Core Integrity 0/700 Matter 300/300 Energy 99/100 System Corruption 2% Temperature Cool (0) Movement Core (350) Ox6 Location -7/Zion Parts ------- > --- POWER (1) -------- (None) > --- PROPULSION (4) --- (None) > --- UTILITY (6) ------ Large Storage Unit Structural Scanner Hacking Suite > --- WEAPON (2) ------- (None) > --- INVENTORY (15) --- Faulty Enhanced Nuclear Core Micro Nuclear Core Improved Hover Unit Compact Battery (200) Seismic Detector Modified TNC Reaction Control System Hardened Medium Armor Plating Hacking Suite System Shield Gauss Rifle Mini Grenade Launcher Mini Grenade Launcher Heavy Mace Makeshift Sword Peak State ------------ > --- POWER ------------ Deuterium Engine > --- PROPULSION ------- Aerolev Unit Aerolev Unit Aerolev Unit Gravmag System > --- UTILITY ---------- Large Storage Unit Weight Redist. System Machine Analyzer Hacking Suite System Shield Improved Field Recycling Unit > --- WEAPON ----------- Gauss Cannon Gauss Cannon > --- INVENTORY -------- Enhanced Nuclear Core Micro Nuclear Core Medium Matter Pod Structural Scanner Modified TNC Reaction Control System Hardened Medium Armor Plating Hacking Suite System Shield Gauss Rifle Assault Cannon Mini Grenade Launcher Mini Grenade Launcher Heavy Mace Katana [Rating: 47] Favorites ----------- Power Heavy Ion Engine Engine Heavy Ion Engine Power Core Light Nuclear Core Propulsion Armored Wheel Treads Light Treads Wheel Armored Wheel Hover Unit Aerolev Unit Flight Unit Cesium-ion Thruster Utility Hacking Suite Device Structural Scanner Storage Huge Storage Unit Processor Machine Analyzer Hackware Hacking Suite Protection Light Armor Plating Weapon Gauss Cannon Energy Gun Medium Laser Energy Cannon EM Pulse Cannon Ballistic Gun Heavy Assault Rifle Ballistic Cannon Gauss Cannon Launcher Grenade Launcher Impact Weapon Heavy Mace Slashing Weapon Katana Build | -11 -10 -10 -9 -9 -9 -8 -8 -7 -7 -7 -7 ------- Run | Yrd Mat Min Mat Min Exi Min Mat Fac Low Low Zio Slots Evolved 6 | . . . 2 . . . 2 2 . . . Power . | . . . . . . . . . . . . Propulsion 2 | . . . 1 . . . . 1 . . . Utility 4 | . . . 1 . . . 2 1 . . . Weapon . | . . . . . . . . . . . . Parts Attached 100 | 7 4 1 30 2 . . 17 34 4 1 . Power 9 | 1 2 . 2 . . . . 3 . 1 . Engine 8 | 1 2 . 2 . . . . 3 . . . Core 1 | . . . . . . . . . . 1 . Reactor . | . . . . . . . . . . . . Propulsion 16 | 2 . . 4 . . . 2 7 1 . . Treads 2 | 2 . . . . . . . . . . . Leg . | . . . . . . . . . . . . Wheel 8 | . . . 4 . . . 1 3 . . . Hover 5 | . . . . . . . . 4 1 . . Flight 1 | . . . . . . . 1 . . . . Utility 31 | 2 . . 10 1 . . 6 10 2 . . Device 13 | 1 . . 4 . . . 2 5 1 . . Storage 3 | 1 . . 1 . . . . 1 . . . Processor 1 | . . . . . . . . 1 . . . Hackware 2 | . . . 1 . . . 1 . . . . Protection 12 | . . . 4 1 . . 3 3 1 . . Artifact . | . . . . . . . . . . . . Weapon 44 | 2 2 1 14 1 . . 9 14 1 . . Energy Gun 1 | 1 . . . . . . . . . . . Energy Cannon 1 | . . . 1 . . . . . . . . Ballistic Gun 10 | 1 2 . 5 . . . 2 . . . . Ballistic Cannon 11 | . . . . . . . 2 8 1 . . Launcher 7 | . . 1 5 1 . . . . . . . Special Weapon . | . . . . . . . . . . . . Impact Weapon 5 | . . . 3 . . . . 2 . . . Slashing Weapon 9 | . . . . . . . 5 4 . . . Piercing Weapon . | . . . . . . . . . . . . Special Melee Weapon . | . . . . . . . . . . . . Unidentified Prototypes 1 | . . . . . . . . 1 . . . Parts Lost 23 | . 1 . 6 . . . 3 2 1 . 10 Power 2 | . . . 1 . . . . . . . 1 Propulsion 8 | . . . 1 . . . 1 1 1 . 4 Utility 9 | . 1 . 2 . . . 2 1 . . 3 Weapon 4 | . . . 2 . . . . . . . 2 Highest Loss Streak 10 | . 1 . 2 . . . 2 1 1 . 10 To Critical Strikes . | . . . . . . . . . . . . Average Slot Usage (%) 96 | . 92 85 93 100 100 100 96 96 99 100 97 Engine 8 | . 14 14 10 11 11 11 9 6 7 6 . Treads 2 | . 28 28 . . . . . . . . . Wheel 19 | . . . 31 33 33 33 26 21 . . . Hover 6 | . . . . . . . . 6 29 30 28 Device 8 | . 6 . 7 2 . . 9 8 14 15 14 Storage 9 | . 14 14 11 11 11 11 9 7 7 7 7 Processor 2 | . . . . . . . . 5 7 7 6 Hackware 11 | . . . 2 11 11 11 16 15 15 15 14 Protection 5 | . . . 8 8 11 11 7 6 . . . Ballistic Gun 7 | . 22 14 13 11 11 11 8 . . . . Ballistic Cannon 5 | . . . . . . . 4 8 13 15 14 Launcher 2 | . . 14 3 8 11 11 . . . . . Impact Weapon 1 | . . . 2 2 . . . 1 . . . Slashing Weapon 1 | . . . . . . . 4 3 . . . Naked Turns . | . . . . . . . . . . . . Heaviest Build 112 | 14 15 13 100 97 97 97 104 112 51 44 40 Greatest Support 50 | 40 40 40 40 34 34 34 34 50 39 39 39 Greatest Overweight (x) 6 | 2 . . 4 2 2 2 4 3 1 1 6 Average Overweight (x) 1 | . . . 1 2 2 2 2 1 . 1 1 Largest Inventory Capacity 25 | 8 8 8 25 25 25 25 25 25 15 15 15 Average Capacity 19 | 7 8 8 16 25 25 25 25 22 15 15 15 Most Carried 25 | 6 8 8 17 20 21 23 25 25 15 15 15 Average Carried 17 | 4 7 7 10 18 20 22 23 22 14 15 15 Final Capacity 25 | 8 8 8 25 25 25 25 25 15 15 15 15 Final Carried 25 | 6 8 8 17 20 21 23 25 15 15 15 15 Class Distribution -------------------- 41% | Mutant 37% | Hacker-Mutant 10% | Hacker-Assassin 6% | Hacker-Skirmisher 3% | Hacker-Scout Dominant Class ---------------- Mutant | -10/Materials Mutant | -10/Mines Mutant | -9/Materials Mutant | -9/Mines Mutant | -9/Exiles Mutant | -8/Mines Hacker-Mutant | -8/Materials Hacker-Assassin | -7/Factory Hacker-Mutant | -7/Lower Caves Hacker-Mutant | -7/Lower Caves Hacker-Mutant | -7/Zion Resources | -11 -10 -10 -9 -9 -9 -8 -8 -7 -7 -7 -7 ----------- Run | Yrd Mat Min Mat Min Exi Min Mat Fac Low Low Zio Matter Collected 2618 | 213 258 17 692 49 . . 459 698 113 51 68 Remotely 219 | . . . . . . . 219 . . . . Salvage Created 2418 | 59 452 31 869 8 . . 294 660 22 23 . Parts 172 | 8 33 4 65 2 . . 18 37 2 3 . Haulers Intercepted 2 | . . . 1 . . . . 1 . . . Recyclers Shooed 6 | . . . 4 . . . . 2 . . . Parts Field Recycled 1 | . . . . . . . . 1 . . . Retrieved Matter 8 | . . . . . . . . 8 . . . Parts Self-Destructed 8 | . . . . . . . . . 2 6 . Prevented . | . . . . . . . . . . . . Kills | -11 -10 -10 -9 -9 -9 -8 -8 -7 -7 -7 -7 ------- Run | Yrd Mat Min Mat Min Exi Min Mat Fac Low Low Zio Combat Hostiles Destroyed 61 | . 10 3 25 3 . . 8 10 1 1 . Melee 1 | . . . 1 . . . . . . . . Guns 30 | . 10 1 12 1 . . 6 . . . . Cannons 15 | . . . 1 . . . 2 10 1 1 . AOE 15 | . . 2 11 2 . . . . . . . Classes Destroyed 13 | 1 4 1 4 . . . 1 2 . . . Worker 6 | . 1 . 4 . . . 1 . . . . Builder 1 | . . . 1 . . . . . . . . Tunneler 6 | 3 . . 2 . . . . 1 . . . Hauler 2 | . . . 1 . . . . 1 . . . Recycler 5 | . . . . . . . . 5 . . . Operator 1 | . 1 . . . . . . . . . . Watcher 2 | . 1 . . . . . 1 . . . . Swarmer 18 | . . 3 8 3 . . 3 . . 1 . Grunt 28 | . 10 . 10 . . . 4 4 . . . Brawler 2 | . . . 2 . . . . . . . . Sentry 6 | . . . 5 . . . . 1 . . . Hunter 1 | . . . . . . . 1 . . . . Programmer 6 | . . . . . . . . 5 1 . . Best Kill Streak 9 | 1 5 3 9 3 . . 3 4 1 1 . Combat Bots Only 8 | . 5 3 8 3 . . 3 2 1 1 . Max Kills in Single Turn 4 | 1 2 2 4 2 . . 1 1 1 1 . Gunslinging . | . . . . . . . . . . . . Exploded 2 | . . 2 2 2 . . . . . . . Melee 1 | . . . 1 . . . . . . . . Uniques/NPCs Destroyed . | . . . . . . . . . . . . Combat | -11 -10 -10 -9 -9 -9 -8 -8 -7 -7 -7 -7 -------- Run | Yrd Mat Min Mat Min Exi Min Mat Fac Low Low Zio Hostile Shots Fired 447 | . 54 15 112 4 . . 52 76 8 1 125 Missed 144 | . 12 4 35 2 . . 20 31 2 1 37 Damage Taken 4251 | . 507 105 1052 16 . . 568 485 89 . 1429 Core 1095 | . 103 9 181 . . . 75 52 . . 675 Absorbed by Shields . | . . . . . . . . . . . . Redirected to Shielding 4 | . . . . . . . . 4 . . . Ignored by Resistances 43 | . . . 43 . . . . . . . . Regen/Repaired (Parts) 115 | . . . . . . . . 115 . . . Core Remaining (%) 73 | 100 . 55 . . . 54 86 . . . . Volleys Fired 248 | 17 39 2 100 4 . . 37 45 3 1 . Largest 2 | 2 2 2 2 2 . . 2 2 2 2 . Hottest 96 | 70 70 50 86 53 . . 67 96 96 96 . Shots Fired 432 | 34 78 4 163 7 . . 63 75 6 2 . Gun 288 | 34 78 2 132 4 . . 38 . . . . Cannon 110 | . . . 2 . . . 25 75 6 2 . Launcher 34 | . . 2 29 3 . . . . . . . Special . | . . . . . . . . . . . . Kinetic 362 | 17 61 2 132 4 . . 63 75 6 2 . Thermal 34 | 17 17 . . . . . . . . . . Explosive 34 | . . 2 29 3 . . . . . . . Electromagnetic 2 | . . . 2 . . . . . . . . Robot Hit Streak 12 | 10 8 6 9 1 . . 11 12 3 1 . Robot Miss Streak 5 | 3 2 . 5 3 . . 3 4 1 1 . Penetration Max 1 | . . . . . . . . 1 . . . Secondary Targets 1 | . . . 1 . . . . . . . . Max Gunslinging Chain 1 | . . . 1 . . . . . . . . Shots Hit Robots 272 | 21 55 3 92 2 . . 46 48 4 1 . Core Hits 138 | 7 24 3 58 5 . . 19 20 1 1 . Critical Kills . | . . . . . . . . . . . . Critical Parts Destroyed 1 | . . . 1 . . . . . . . . Critical Strikes 8 | . 1 . 1 . . . . 6 . . . Burn 1 | . 1 . . . . . . . . . . Blast 6 | . . . . . . . . 6 . . . Smash 1 | . . . 1 . . . . . . . . Melee Attacks 47 | . . . 13 . . . 11 23 . . . Impact 16 | . . . 13 . . . . 3 . . . Slashing 31 | . . . . . . . 11 20 . . . Piercing . | . . . . . . . . . . . . Sneak Attacks 4 | . . . 2 . . . . 2 . . . Combat Hostiles . | . . . . . . . . . . . . Follow-up Attacks . | . . . . . . . . . . . . Damage Inflicted 5643 | 240 666 77 2080 136 . . 816 1458 136 28 6 Guns 2228 | 240 666 23 847 32 . . 420 . . . . Cannons 1927 | . . . 42 . . . 396 1325 136 28 . Explosions 966 | . . 54 808 104 . . . . . . . Melee 516 | . . . 383 . . . . 133 . . . Ramming 6 | . . . . . . . . . . . 6 Kinetic 3813 | 102 504 23 847 32 . . 816 1325 136 28 . Thermal 300 | 138 162 . . . . . . . . . . Explosive 966 | . . 54 808 104 . . . . . . . Electromagnetic 42 | . . . 42 . . . . . . . . Impact 383 | . . . 383 . . . . . . . . Slashing 133 | . . . . . . . . 133 . . . Piercing . | . . . . . . . . . . . . Highest Corruption 2 | . . . . . . . . 1 2 2 2 Average Corruption 1 | . . . . . . . . 1 1 2 1 Corruption Purged . | . . . . . . . . . . . . Corruption Blocked . | . . . . . . . . . . . . Effects 14 | . . . . . . . . 3 2 8 1 Message Errors 4 | . . . . . . . . 1 1 1 1 Matter Fused 4 | . . . . . . . . . 1 3 . Heat Flow Errors 3 | . . . . . . . . . . 3 . Energy Discharges 1 | . . . . . . . . . . 1 . Parts Fused 1 | . . . . . . . . 1 . . . Data Loss (minor) 1 | . . . . . . . . 1 . . . Overload Shots . | . . . . . . . . . . . . Overflow Damage 349 | . . . 228 17 . . 4 100 . . . Projectiles 31 | . . . . . . . 4 27 . . . Explosions 26 | . . . 9 17 . . . . . . . Melee 292 | . . . 219 . . . . 73 . . . Knockbacks 13 | . . . 2 . . . 4 6 1 . . Impact 2 | . . . 2 . . . . . . . . Kinetic 11 | . . . . . . . 4 6 1 . . Secondary . | . . . . . . . . . . . . Self-Inflicted Damage 113 | . . 15 96 . . . . . . . 2 Shots 9 | . . 1 8 . . . . . . . . Rammed 2 | . . . . . . . . . . . 2 Targets Rammed 2 | . . . . . . . . . . . 2 Kicked . | . . . . . . . . . . . . Crushed . | . . . . . . . . . . . . Highest Temperature 354 | 90 354 . 54 . . . 36 189 42 278 53 Average Temperature 58 | 37 154 . 10 . . . 17 67 21 115 16 Received Heat Transfer 1529 | . 282 . 429 . . . 117 183 . . 518 Effects 1 | . . . . . . . . . . 1 . Energy Bleed 1 | . . . . . . . . . . 1 . Siege Activations . | . . . . . . . . . . . . Robots Corrupted . | . . . . . . . . . . . . Combat Hostiles . | . . . . . . . . . . . . Parts Fried 4 | . . . 4 . . . . . . . . Impact Corruptions 4 | . . . 4 . . . . . . . . Robots Melted . | . . . . . . . . . . . . Combat Hostiles . | . . . . . . . . . . . . Parts Melted 1 | . 1 . . . . . . . . . . Heat Transferred 962 | 407 555 . . . . . . . . . . Parts Sabotaged . | . . . . . . . . . . . . Parts Stolen . | . . . . . . . . . . . . Parts Stripped . | . . . . . . . . . . . . Power Chain Reactions . | . . . . . . . . . . . . Alert | -11 -10 -10 -9 -9 -9 -8 -8 -7 -7 -7 -7 ------- Run | Yrd Mat Min Mat Min Exi Min Mat Fac Low Low Zio Peak Influence 474 | 15 185 115 474 278 . . 180 134 . . . Initial 184 | . 9 13 44 184 . . . 67 . . . Average 106 | 5 104 109 225 212 . . 64 51 . . . Maximum Alert Level 2 | . . . 2 1 . . . . . . . Low Security (%) 82 | 100 100 100 37 43 . 100 100 100 . . . Level 1 14 | . . . 46 56 . . . . . . . Level 2 3 | . . . 15 . . . . . . . . Level 3 . | . . . . . . . . . . . . Level 4 . | . . . . . . . . . . . . Level 5 . | . . . . . . . . . . . . High Security . | . . . . . . . . . . . . Max Security . | . . . . . . . . . . . . Squads Dispatched 16 | . 3 . 4 . . . . 9 . . . Investigation 2 | . 1 . . . . . . 1 . . . Extermination 6 | . . . . . . . . 6 . . . Reinforcement 8 | . 2 . 4 . . . . 2 . . . Assault . | . . . . . . . . . . . . Garrison . | . . . . . . . . . . . . Intercept . | . . . . . . . . . . . . Searches Triggered . | . . . . . . . . . . . . Construction Impeded 2 | . . . 2 . . . . . . . . Haulers Reinforced . | . . . . . . . . . . . . Active Scanning Responses . | . . . . . . . . . . . . Cargo Convoy Interrupts . | . . . . . . . . . . . . Stealth | -11 -10 -10 -9 -9 -9 -8 -8 -7 -7 -7 -7 --------- Run | Yrd Mat Min Mat Min Exi Min Mat Fac Low Low Zio Distress Signals 10 | . 2 . 5 . . . 3 . . . . Communications Jammed . | . . . . . . . . . . . . Distress Signals . | . . . . . . . . . . . . Times Spotted 122 | . 17 3 40 2 . . 25 15 1 2 17 Peak Tracking Total 16 | . 4 3 5 3 . . 4 4 1 4 16 Tactical Retreats 10 | . . . 3 . . . 4 1 . 1 1 Traps | -11 -10 -10 -9 -9 -9 -8 -8 -7 -7 -7 -7 ------- Run | Yrd Mat Min Mat Min Exi Min Mat Fac Low Low Zio Traps Triggered 6 | . 1 . 1 . . . . 4 . . . Indirectly . | . . . . . . . . . . . . Trap Hack Attempts . | . . . . . . . . . . . . Triggered . | . . . . . . . . . . . . Disarmed . | . . . . . . . . . . . . Reprogrammed . | . . . . . . . . . . . . Reused . | . . . . . . . . . . . . Traps Extracted . | . . . . . . . . . . . . Installed . | . . . . . . . . . . . . Triggered 1 | . . . . . . . . . . 1 . Machines | -11 -10 -10 -9 -9 -9 -8 -8 -7 -7 -7 -7 ---------- Run | Yrd Mat Min Mat Min Exi Min Mat Fac Low Low Zio Machines Disabled 3 | . . . 1 . . . . 2 . . . Max in Single Turn 2 | . . . 1 . . . . 2 . . . Machines Repaired . | . . . . . . . . . . . . Machines Dismantled . | . . . . . . . . . . . . Machines Sabotaged . | . . . . . . . . . . . . Overloaded Fab Kills . | . . . . . . . . . . . . Hacking | -11 -10 -10 -9 -9 -9 -8 -8 -7 -7 -7 -7 --------- Run | Yrd Mat Min Mat Min Exi Min Mat Fac Low Low Zio Machines Accessed 28 | . 2 . 8 . 2 . 7 6 . 3 . Terminals 15 | . 1 . 7 . . . 5 2 . . . Fabricators 1 | . . . . . . . . 1 . . . Repair Stations 1 | . . . . . . . . 1 . . . Recycling Units 2 | . 1 . . . . . 1 . . . . Scanalyzers 3 | . . . 1 . . . 1 1 . . . Garrison Access 1 | . . . . . . . . 1 . . . Total Hacks 65 | . 4 . 15 . 7 . 20 12 . 7 . Successful 37 | . 1 . 7 . 7 . 10 5 . 7 . Failed 28 | . 3 . 8 . . . 10 7 . . . Catastrophic 8 | . 1 . . . . . 5 2 . . . Database Lockouts . | . . . . . . . . . . . . Manual 31 | . 2 . 12 . 1 . 11 5 . . . Terminals 35 | . 3 . 13 . . . 14 5 . . . Fabricators 1 | . . . . . . . . 1 . . . Repair Stations 4 | . . . . . . . . 4 . . . Recycling Units 4 | . 1 . . . . . 3 . . . . Scanalyzers 6 | . . . 2 . . . 3 1 . . . Garrison Access 1 | . . . . . . . . 1 . . . Terminal Hacks 21 | . 1 . 2 . 7 . 3 1 . 7 . Record 12 | . . . . . 6 . 1 . . 5 . Prototype ID Bank 1 | . 1 . . . . . . . . . . Open Door 2 | . . . . . . . . . . 2 . Terminal Index 3 | . . . 1 . . . 1 1 . . . Hauler Manifests 1 | . . . 1 . . . . . . . . Zone Layout 1 | . . . . . . . 1 . . . . Derelict Proto ID Bank 1 | . . . . . 1 . . . . . . Fabricator Hacks . | . . . . . . . . . . . . Repair Station Hacks 4 | . . . . . . . . 4 . . . Scan Component 2 | . . . . . . . . 2 . . . Repair 2 | . . . . . . . . 2 . . . Recycling Unit Hacks 3 | . . . . . . . 3 . . . . Process 1 | . . . . . . . 1 . . . . Report Inventory 1 | . . . . . . . 1 . . . . Retrieve Matter 1 | . . . . . . . 1 . . . . Scanalyzer 5 | . . . 2 . . . 3 . . . . Insert Component 3 | . . . 1 . . . 2 . . . . Analyze 2 | . . . 1 . . . 1 . . . . Garrison Access Hacks . | . . . . . . . . . . . . Unauthorized Hacks 4 | . . . 3 . . . 1 . . . . Terminals 4 | . . . 3 . . . 1 . . . . Botnet 4 | . . . 3 . . . 1 . . . . Fabricators . | . . . . . . . . . . . . Repair Stations . | . . . . . . . . . . . . Recycling Units . | . . . . . . . . . . . . Scanalyzers . | . . . . . . . . . . . . Garrison Access . | . . . . . . . . . . . . Data Cores Recovered . | . . . . . . . . . . . . Used . | . . . . . . . . . . . . Hacking Detections 19 | . 1 . 7 . . . 6 5 . . . Full Trace Events . | . . . . . . . . . . . . Feedback Events . | . . . . . . . . . . . . Feedback Blocked . | . . . . . . . . . . . . Robot Schematics Acquired . | . . . . . . . . . . . . Robots Built . | . . . . . . . . . . . . Authchips . | . . . . . . . . . . . . Time . | . . . . . . . . . . . . Total Robot Build Rating . | . . . . . . . . . . . . Part Schematics Acquired 2 | . . . 1 . . . 1 . . . . Parts Built . | . . . . . . . . . . . . Authchips . | . . . . . . . . . . . . Time . | . . . . . . . . . . . . Total Part Build Rating . | . . . . . . . . . . . . Parts Repaired 1 | . . . . . . . . 1 . . . Time 89 | . . . . . . . . 89 . . . Parts Recycled . | . . . . . . . . . . . . Recycled Matter 48 | . . . . . . . 48 . . . . Retrieved Matter 48 | . . . . . . . 48 . . . . Retrieved Components . | . . . . . . . . . . . . Parts Scanalyzed 2 | . . . 1 . . . 1 . . . . Part Schematics Acquired 2 | . . . 1 . . . 1 . . . . Parts Damaged . | . . . . . . . . . . . . Bothacking | -11 -10 -10 -9 -9 -9 -8 -8 -7 -7 -7 -7 ------------ Run | Yrd Mat Min Mat Min Exi Min Mat Fac Low Low Zio Used RIF Installer . | . . . . . . . . . . . . Robots Hacked . | . . . . . . . . . . . . Non-combat . | . . . . . . . . . . . . Combat . | . . . . . . . . . . . . Robot Hacks Applied . | . . . . . . . . . . . . Relay Couplers Released . | . . . . . . . . . . . . Fabnet Peak Effective % . | . . . . . . . . . . . . Robots Rewired . | . . . . . . . . . . . . Allies Hacked . | . . . . . . . . . . . . Hacks Repelled . | . . . . . . . . . . . . Allies | -11 -10 -10 -9 -9 -9 -8 -8 -7 -7 -7 -7 -------- Run | Yrd Mat Min Mat Min Exi Min Mat Fac Low Low Zio Total Allies 7 | . . . . . . . . . . 2 5 Largest Group 5 | . . . . . . . . . . 2 5 Highest-Rated Group 135 | . . . . . . . . . . 56 135 Highest-Rated Ally 31 | . . . . . . . . . . 31 31 Total Orders . | . . . . . . . . . . . . Ally Attacks 5 | . . . . . . . . . . 5 . Total Damage 104 | . . . . . . . . . . 104 . Kills 2 | . . . . . . . . . . 2 . Allies Corrupted . | . . . . . . . . . . . . Allies Melted . | . . . . . . . . . . . . Intel | -11 -10 -10 -9 -9 -9 -8 -8 -7 -7 -7 -7 ------- Run | Yrd Mat Min Mat Min Exi Min Mat Fac Low Low Zio Robot Analysis Total . | . . . . . . . . . . . . Derelict Logs Recovered 4 | . . . . 1 . . . . 1 1 1 Drone Launches . | . . . . . . . . . . . . Drone Recoveries . | . . . . . . . . . . . . Exploration | -11 -10 -10 -9 -9 -9 -8 -8 -7 -7 -7 -7 ------------- Run | Yrd Mat Min Mat Min Exi Min Mat Fac Low Low Zio Turns Passed 10487 | 302 805 134 1941 516 260 224 1586 3032 397 397 893 Spaces Moved 7271 | 169 413 79 1414 431 224 192 1013 1701 429 393 813 Core 48 | 34 . . . . . . . . . . 14 Treads 651 | 135 413 79 24 . . . . . . . . Legs . | . . . . . . . . . . . . Wheels 4515 | . . . 1390 431 224 192 1013 1265 . . . Hover 2057 | . . . . . . . . 436 429 393 799 Flight . | . . . . . . . . . . . . Fastest Speed 40 | 50 160 160 90 116 116 116 113 40 40 100 100 Average Speed 110 | 140 160 160 106 116 116 116 119 102 86 100 102 Slowest Speed 350 | 160 160 160 160 116 116 116 145 128 102 100 350 Overloaded Moves . | . . . . . . . . . . . . Propulsion Burnouts . | . . . . . . . . . . . . Robots Hopped . | . . . . . . . . . . . . Cave-ins Triggered . | . . . . . . . . . . . . Exploration Rate (%) 52 | 10 50 24 77 88 61 43 51 30 57 56 78 Regions Visited 11 Branch Regions 7 Pre-discovered Areas 2 | . . . . 1 1 . . . . . . Known Exits Taken . | . . . . . . . . . . . . Unknown Exits Taken 11 | 1 1 1 1 1 1 1 1 1 1 1 . Scrap Searched 8 | . . . . 2 . . . . 2 2 2 Spaces Dug 59 | . . . 27 . . . 11 21 . . . Terrain Destroyed 207 | . . 17 127 11 . . 15 35 . 2 . Melee 38 | . . . 6 . . . 11 21 . . . Projectile 20 | . . . . . . . 4 14 . 2 . AOE 149 | . . 17 121 11 . . . . . . . Terrain Rammed . | . . . . . . . . . . . . Walls Destroyed . | . . . . . . . . . . . . Machines Disabled . | . . . . . . . . . . . . Actions | -11 -10 -10 -9 -9 -9 -8 -8 -7 -7 -7 -7 --------- Run | Yrd Mat Min Mat Min Exi Min Mat Fac Low Low Zio Total 9205 | 201 486 83 1671 439 224 193 1305 2884 448 394 877 Wait 1423 | 1 17 . 94 . . . 216 1026 9 . 60 Move 7260 | 168 412 78 1413 430 223 191 1012 1700 428 392 813 Hop . | . . . . . . . . . . . . Pick Up 69 | 8 6 1 16 3 1 2 9 20 2 . 1 Fast Attach 21 | 5 2 . 7 . . . . 6 1 . . Attach 20 | 2 . . 6 . . . 6 6 . . . Detach 1 | . . . . . . . 1 . . . . Swap 59 | . 2 1 17 2 . . 11 22 3 1 . Drop 47 | . 8 1 5 . . . 2 28 2 . 1 Fire 248 | 17 39 2 100 4 . . 37 45 3 1 . Melee 47 | . . . 13 . . . 11 23 . . . Ram 2 | . . . . . . . . . . . 2 Kick . | . . . . . . . . . . . . Crush . | . . . . . . . . . . . . Escape Stasis 8 | . . . . . . . . 8 . . . Rewire . | . . . . . . . . . . . . Trap . | . . . . . . . . . . . . Miscellaneous . | . . . . . . . . . . . . Route ------- -11/Scrapyard -10/Materials (discovered 2 exits: *Mat / [*Min]) -10/Mines -9/Materials (discovered 5 exits: *Mat x3 / [*Min] / [*Sto]) -9/Mines (discovered 4 exits: *Mat x2 / *Exi / [*Zio]) -9/Exiles -8/Mines -8/Materials -7/Factory (discovered 3 exits: [*Fac] / [*Low x2]) -7/Lower Caves -7/Lower Caves -7/Zion History --------- Turn | Location | Event 10 | -11/Scrapyard | Discovered new exit (range 14) 303 | -11/Scrapyard | Entered Materials 304 | -10/Materials | Build established: Mutant 357 | -10/Materials | Discovered new exit (range 10) 899 | -10/Materials | Discovered new exit (range 16) 1108 | -10/Materials | Entered Mines 1215 | -10/Mines | Discovered new exit (range 7) 1242 | -10/Mines | Entered Materials 1242 | -9/Materials | Evolved 2 slots: Propulsion x1, Utility x1 1752 | -9/Materials | Discovered new exit (range 10) 1776 | -9/Materials | Discovered new exit (range 14) 2238 | -9/Materials | Discovered new exit (range 10) 2822 | -9/Materials | Destroyed 8 combat bots 2890 | -9/Materials | Discovered new exit (range 16) 3164 | -9/Materials | Discovered new exit (range 16) 3183 | -9/Materials | Entered Mines 3211 | -9/Mines | A Derelict revealed a hidden shortcut to a safe place 3303 | -9/Mines | Discovered new exit (range 11) 3455 | -9/Mines | Discovered new exit (range 14) 3587 | -9/Mines | Found a damaged Exp. Sensor Array with a note attached 3589 | -9/Mines | Found Prototype Device 3633 | -9/Mines | Learned location of Zion (-7) 3692 | -9/Mines | Deemed a non-threat by the Exiles lab entrance 3693 | -9/Mines | Discovered new exit (range 5) 3699 | -9/Mines | Entered Exiles 3727 | -9/Exiles | Met 8R-AWN 3747 | -9/Exiles | Met EX-HEX 3784 | -9/Exiles | Met EX-BIN 3802 | -9/Exiles | Aligned with FarCom system 3803 | -9/Exiles | Given EX-Vault access code 3833 | -9/Exiles | Opened EX-Vault 3842 | -9/Exiles | Found Modified TNC 3868 | -9/Exiles | Warned to stay clear of 0b10 Research branches 3903 | -9/Exiles | Met EX-DEC 3950 | -9/Exiles | Discovered new exit (range 10) 3959 | -9/Exiles | Left Exiles lab with Modified TNC 3959 | -9/Exiles | Entered Mines 4171 | -8/Mines | Discovered new exit (range 9) 4183 | -8/Mines | Entered Materials 4183 | -8/Materials | Evolved 2 slots: Utility x2 4456 | -8/Materials | Identified Exp. Sensor Array 4683 | -8/Materials | Build established: Hacker-Mutant 5492 | -8/Materials | Discovered new exit (range 12) 5769 | -8/Materials | Entered Factory 5769 | -7/Factory | Evolved 2 slots: Propulsion x1, Utility x1 5958 | -7/Factory | Discovered new exit (range 15) 6456 | -7/Factory | Discovered new exit (range 16) 6649 | -7/Factory | Build established: Hacker-Assassin 6679 | -7/Factory | Repaired Assault Cannon 7473 | -7/Factory | Build established: Hacker-Skirmisher 7887 | -7/Factory | Build established: Hacker-Assassin 8200 | -7/Factory | Discovered new exit (range 6) 8801 | -7/Factory | Entered Lower Caves 8888 | -7/Lower Caves | Learned Factory terminal intel 9099 | -7/Lower Caves | Build established: Hacker-Mutant 9123 | -7/Lower Caves | Encountered a Warlord checkpoint 9140 | -7/Lower Caves | Discovered new exit (range 11) 9198 | -7/Lower Caves | Entered another Lower Caves area 9253 | -7/Lower Caves | A Commander dispatched an escort 9269 | -7/Lower Caves | Learned Factory terminal intel 9269 | -7/Lower Caves | Learned Armory terminal intel 9269 | -7/Lower Caves | Learned Factory garrison access intel 9269 | -7/Lower Caves | Learned Armory garrison access intel 9412 | -7/Lower Caves | Discovered new exit (range 11) 9416 | -7/Lower Caves | Learned Factory stockpile data 9494 | -7/Lower Caves | Encountered a Warlord checkpoint 9576 | -7/Lower Caves | Lost 3 allies 9595 | -7/Lower Caves | Entered Zion 9629 | -7/Zion | System corruption cleaned by Quarantine Array 9846 | -7/Zion | Learned location of 1 exit from Proximity Caves 10001 | -7/Zion | Gained Derelict followers 10405 | -7/Zion | Rebuked by Imprinter 10433 | -7/Zion | Attempted to imprint without authorization 10433 | -7/Zion | Attacked by Zionites 10468 | -7/Zion | Core integrity fell below 50% 10484 | -7/Zion | Core integrity fell below 20% 10488 | -7/Zion | Destroyed by ME-8BT(z) with Makeshift Spear Last Messages --------------- Twisted Machinery. RS-R0L(z) bursts out of the Twisted Machinery. 10470_ T7JZIV11ZHEK0KC BIPZF2J5 10477_ Weight Redist. System destroyed. 10478_ TB-TMG(z) pulls a Mak. Axe out of the Twisted Machinery. 10479_ Machine Analyzer destroyed. DN-6EG(z) bursts out of the Twisted Machinery. ME-8BT(z) bursts out of the Twisted Machinery. 10481_ ME-8BT(z) pulls a Mak. Spear out of the Twisted Machinery. 10483_ DN-6EG(z) pulls a Mak. Spear out of the Twisted Machinery. H8-A1R(z) bursts out of the Twisted Machinery. 10485_ H8-A1R(z) pulls a Mak. Hammer out of the Twisted Machinery. 29-0UA(z) bursts out of the Twisted Machinery. 10488_ 29-0UA(z) pulls a Mak. Axe out of the Twisted Machinery. 10488_ Critical hit (Impale). Map ----- +----------------------------------------------------+ | ???????????????????????????????????"""" """" " | | ??????????????????????????????????""""" """""!="" | | ??????????????????????????????????##""" ! | | ??????????????????????????????????###"" = | | ??????????????????????????????########" | | ??????????????????????????????######""" | | ??????????????????????????????##""#"""" | | ??????????????????????????????##"""""" | | ??????????????????????????????###"" " | | ??????????????????????????????##"" """" | | ??????????????????????????????###" "##" | | ????????????????????????"""???##"" """## | | ???????????????????????? ""?"##"" ""#### | | ???????????????????????? """##""""" ""#### | | ???????????????????????? """"""""" ""###? | | ???????????????????????? "" ""###? | | ???????????????????????? "" """##? | | ?????????????????????#"" """"""" ""#### | | ?????????????????????##"" """""""""" """### | | ????????????????????#"#"" """"#####""" """"## | | ????????????????????##""" "##""####""" """# | | ????????????????#####"" "#"######" ""# | | ?????????????########""" """""####"" ""# | | ??????????########"#"##"" ""##""#"""" "## | | ??????????#####"""""#""#z ""##""""""" "## | | ??????????##"""" """""#z@ """"" """"" """ | | ????"""""? #"#" zzz ""#" "" """""# | | ??"""""""" #"#" i zz """"" """### | | ??? #""" g g """"" ""#### | | ????"" ##"" g M"""s "" """ #""### | | ????""" M""""" "" """ #""### | | ????""" M """"" """"""""" """""" | | ????""" "##""""" """""""""" "" | | ???""" ### ""#"""#" "" "" " | | ??? #"" "###""#" """ """ | | ??"""""""? ###" ""####"" """" "" | | ??????"??? #""" ""####"" """" "" | | ??????#######"" "#####""" """" """ | | ?????"######""# """##"#"" """" """ | | ?????"##"""#### #"##"#"" """ | | ?????##" #####"" """ | | ?????"#" #"####" """ "" | | ?????"#" #"?###"" "#" "" "" | | ?????"## #### ##?##""" """ "" "" | | ?""""""# ##########?###"" "" """"""" "" | | ?####### #########""###" " """""" "# | | """""""" """"""""??"#"#" "" "" """ | | "######" "######"??###"" "" """ | | "# " " " " #"???"##" "" """ | | "# " """ #"???""""" | +----------------------------------------------------+ Best States ------------- Heat Dissipation 34 Energy Generation 14 Energy Capacity 280 Matter Stores 300 Matter Capacity 300 Sight Range 16 Terrain Scan Range 16 Terrain Scan Density 10 Additional Mass Support 6 Armor Coverage 300 Resistance: TH 10 Weapon Shielding 33 Evasion (%) 57 Recoil Reduction 2 Offensive Hacking 10 Defensive Hacking 10 Item Schematics ----------------- Hacking Suite | -9/Materials | Scanalyzed Weight Redist. System | -8/Materials | Scanalyzed Robot Schematics ------------------ None Fabricated ------------ Nothing Alien Tech Used ----------------- None Achievements -------------- Quantum Hacking Challenges ------------ None Game ------ Seed DisruptionCoilProtomatter Manual? 0 Play Time 02:00:29 Cumulative 39.7 hours Start 2024.06.23 @ 16:22:57 End 2024.06.27 @ 23:04:50 Sessions 3 Manual Loads 0 Difficulty Rogue Special Mode None Game No. 60 Rogue 60 Adventurer 0 Explorer 0 Win Type - Total 0 Types 0/0/0/0/0/0/0/0/0 Lore% 26 Gallery% 27 Achievement% 29 Wizard Run 0 Options --------- Layout 1 ASCII 0 Keyboard 0 Movement Arrows Keybinds 0 Fullscreen 1 Font 24/Crisp Map View 50x40 Zoom Use 0% Tactical HUD 1 Map Filters NONE Filters NONE Steam 1 RUN: d3d18501-f537-49a4-bad4-67deec77aa59